bitfinex/quotes_SOLUSD_20251204
["timestamp","ask_amount","ask_price","bid_price","bid_amount"]
[1764846796060,0.66,143.41,143.37,11.05575543]
[1764846796759,7.63317853,143.41,143.37,11.05575543]
[1764846796959,7.63317853,143.41,143.38,4.08094182]
[1764846797139,0.66,143.4,143.39,4.08094182]
[1764846798965,0.66,143.42,143.39,11.05492884]
[1764846799260,0.66,143.42,143.41,4.08094182]
[1764846802153,6.97127578,143.45,143.41,11.05395625]
[1764846802465,0.66,143.42,143.41,4.08094182]
[1764846806675,0.66,143.42,143.41,11.05395625]
[1764846807677,0.66,143.43,143.41,11.05395625]
[1764846807967,0.66,143.43,143.42,4.08094182]
[1764846808779,0.66,143.44,143.42,4.08094182]
[1764846809078,0.66,143.44,143.43,4.08094182]
[1764846811057,0.66,143.44,143.42,11.05321346]
[1764846811876,0.66000001,143.46,143.43,4.08094182]
[1764846812080,0.66000001,143.46,143.44,4.08094182]
[1764846814080,0.66000001,143.46,143.45,4.08094182]
[1764846818555,0.66000001,143.46,143.44,11.05216426]
[1764846818760,0.66000001,143.46,143.44,4.08094182]
[1764846819992,7.63075933,143.46,143.43,4.08094182]
[1764846820201,11.71170115,143.46,143.41,11.05374563]
[1764846820483,0.66,143.45,143.41,11.05374563]
[1764846820866,0.66,143.45,143.42,11.05341786]
[1764846821188,0.66,143.45,143.4,17.43331676]
[1764846821189,0.66,143.45,143.43,11.05294456]
[1764846821884,1e-08,143.46,143.44,4.08094182]
[1764846822185,1e-08,143.46,143.45,4.08094182]
[1764846822186,0.69000001,143.46,143.45,4.08094182]
[1764846822695,0.69000001,143.46,143.43,6.97200274]
[1764846822696,0.69000001,143.46,143.44,4.08094182]
[1764846823472,0.69000001,143.46,143.44,11.05248855]
[1764846823675,0.69000001,143.46,143.4,17.43336757]
[1764846823882,0.69000001,143.46,143.43,4.08094182]
[1764846824079,7.66060333,143.46,143.43,4.08094182]
[1764846824500,0.72,143.45,143.43,4.08094182]
[1764846825202,0.72,143.45,143.44,4.08094182]
[1764846827494,0.72,143.45,143.43,11.05275927]
[1764846827680,0.72,143.45,143.44,4.08094182]
[1764846830211,7.69108216,143.45,143.41,4.08094182]
[1764846830380,7.69108216,143.45,143.4,11.05431018]
[1764846830578,0.72,143.44,143.4,11.05431018]
[1764846830788,0.72,143.44,143.41,4.08094182]
[1764846830986,7.69164719,143.44,143.41,4.08094182]
[1764846831405,0.72,143.43,143.41,4.08094182]
[1764846831582,0.72,143.43,143.4,6.97336836]
[1764846831583,0.72,143.43,143.42,4.08094182]
[1764846833208,7.69113076,143.45,143.42,11.05344929]
[1764846833400,7.69113076,143.45,143.43,4.08094182]
[1764846833604,0.72,143.44,143.43,4.08094182]
[1764846834515,0.72,143.44,143.43,2.61377751]
[1764846835516,0.72,143.44,143.42,2.61377751]
[1764846838313,7.6915675,143.44,143.41,9.58663693]
[1764846838812,0.72,143.43,143.41,9.58663693]
[1764846841316,0.72,143.43,143.42,2.61377751]
[1764846842909,0.72,143.43,143.41,9.58660021]
[1764846845021,0.72,143.43,143.42,2.61377751]
[1764846847313,7.69130324,143.45,143.42,2.61377751]
[1764846847512,0.72,143.44,143.42,2.61377751]
[1764846848625,0.72,143.44,143.43,2.61377751]
[1764846849514,6.97130324,143.45,143.43,2.61377751]
[1764846849515,7.69130324,143.45,143.43,2.61377751]
[1764846850021,7.69130324,143.45,143.44,2.61377751]
[1764846850215,7.69075972,143.46,143.44,2.61377751]
[1764846850618,0.72,143.45,143.44,2.61377751]
[1764846851229,6.97075972,143.46,143.44,2.61377751]
[1764846851420,7.69075972,143.46,143.44,2.61377751]
[1764846853335,0.7,143.45,143.44,2.61377751]
[1764846855331,0.7,143.45,143.43,2.61377751]
[1764846856307,0.7,143.45,143.44,2.61377751]
[1764846867429,0.7,143.45,143.43,9.5856921]
[1764846870120,0.7,143.44,143.4,9.58694907]
[1764846870348,7.67156949,143.44,143.41,2.61377751]
[1764846871148,0.7,143.43,143.41,2.61377751]
[1764846871449,3.31377751,143.43,143.38,2.61377751]
[1764846871808,3.31377751,143.43,143.38,9.58822319]
[1764846871917,7.67252823,143.42,143.38,9.58822319]
[1764846872334,0.7,143.41,143.38,9.58822319]
[1764846874834,7.67314116,143.41,143.37,6.97488074]
[1764846875146,7.67314116,143.41,143.37,9.58865825]
[1764846875347,0.7,143.4,143.37,9.58865825]
[1764846876550,0.7,143.39,143.37,9.58865825]
[1764846876747,0.7,143.39,143.36,9.58901913]
[1764846878132,0.7,143.39,143.36,6.97524162]
[1764846878328,0.7,143.39,143.36,9.58901913]
[1764846878523,7.67402985,143.39,143.35,49.43441289]
[1764846878746,7.67402985,143.39,143.35,42.45864809]
[1764846878948,0.7,143.38,143.35,42.45864809]
[1764846879553,0.7,143.38,143.35,49.43453668]
[1764846880457,7.67473814,143.38,143.35,42.45864809]
[1764846880633,10.28851565,143.38,143.33,17.27034416]
[1764846880834,0.7,143.37,143.33,10.27034416]
[1764846881548,3.31377751,143.37,143.32,9.59103722]
[1764846881948,0.67,143.36,143.32,9.59103722]
[1764846882854,0.67,143.36,143.33,2.61377751]
[1764846885256,7.64544977,143.36,143.34,2.61377751]
[1764846885658,0.7,143.35,143.34,2.61377751]
[1764846885963,0.7,143.35,143.33,2.61377751]
[1764846886849,7.67602205,143.35,143.31,6.97776408]
[1764846887048,7.67602205,143.35,143.31,7.68776408]
[1764846887249,0.7,143.34,143.31,10.30154159]
[1764846888455,0.7,143.34,143.31,9.59154159]
[1764846888649,0.7,143.34,143.31,10.30154159]
[1764846889442,0.7,143.34,143.32,2.61377751]
[1764846889639,0.7,143.34,143.31,10.30154159]
[1764846889843,0.7,143.34,143.31,9.59154159]
[1764846890044,0.7,143.34,143.31,10.30154159]
[1764846890966,0.7,143.34,143.31,9.59154159]
[1764846891459,0.7,143.34,143.31,10.30154159]
[1764846891843,0.7,143.34,143.32,2.61377751]
[1764846893761,0.7,143.36,143.33,3.32377751]
[1764846893966,0.7,143.36,143.34,2.61377751]
[1764846894282,7.67461177,143.38,143.35,2.61377751]
[1764846894855,6.97401097,143.39,143.36,2.61377751]
[1764846895045,7.67401097,143.39,143.36,3.32377751]
[1764846895245,7.67401097,143.39,143.37,2.61377751]
[1764846896468,7.67401097,143.39,143.37,4.08730262]
[1764846896776,7.67401097,143.39,143.35,7.68560341]
[1764846896945,0.7,143.38,143.36,4.08730262]
[1764846898643,7.67401097,143.39,143.37,4.08730262]
[1764846899054,6.97351169,143.4,143.38,4.08730262]
[1764846899262,6.97351169,143.4,143.39,4.08730262]
[1764846899568,0.7,143.39,143.38,4.08730262]
[1764846899769,0.7,143.39,143.33,9.51994492]
[1764846899962,0.7,143.39,143.35,19.87313866]
[1764846900343,6.97447342,143.38,143.34,11.0634362]
[1764846900540,0.7,143.37,143.33,4.08730262]
[1764846900855,4.78730262,143.37,143.32,11.77464404]
[1764846901043,0.7,143.37,143.33,4.08730262]
[1764846901238,0.7,143.37,143.32,7.68734142]
[1764846901239,0.7,143.36,143.32,6.97734142]
[1764846901438,0.7,143.36,143.32,11.06464404]
[1764846901842,0.7,143.36,143.33,4.08730262]
[1764846902067,0.7,143.36,143.33,4.79730262]
[1764846902239,0.7,143.37,143.34,4.79730262]
[1764846902443,0.7,143.37,143.34,11.06351393]
[1764846903863,6.97416401,143.39,143.35,4.08730262]
[1764846904063,0.7,143.38,143.35,4.08730262]
[1764846904760,0.7,143.38,143.35,11.06305181]
[1764846905344,0.7,143.38,143.36,4.08730262]
[1764846905546,0.7,143.38,143.35,11.06305181]
[1764846907476,7.67456973,143.38,143.34,11.06357074]
[1764846907772,0.7,143.37,143.35,4.08730262]
[1764846908474,0.7,143.37,143.34,11.06357074]
[1764846908865,0.7,143.37,143.34,6.97626812]
[1764846909073,0.7,143.37,143.34,4.08730262]
[1764846909274,7.67510085,143.37,143.34,4.08730262]
[1764846909656,0.7,143.37,143.34,11.77335255]
[1764846909873,4.08730262,143.42,143.36,4.08730262]
[1764846910066,21.64313937,143.41,143.39,4.08730262]
[1764846910264,0.7,143.41,143.39,4.08730262]
[1764846910465,0.7,143.4,143.38,4.08730262]
[1764846912076,7.67306706,143.41,143.38,11.06177197]
[1764846912454,7.67306706,143.41,143.38,11.77177197]
[1764846912868,0.72,143.4,143.38,11.06177197]
[1764846913181,7.69306706,143.41,143.38,11.06177197]
[1764846913582,6.97252823,143.42,143.38,11.06177197]
[1764846913767,0.72,143.4,143.37,11.06203821]
[1764846915178,4.80730262,143.4,143.36,6.97524853]
[1764846915481,0.72,143.4,143.37,11.06197216]
[1764846916181,7.69356009,143.4,143.37,6.97466954]
[1764846916571,0.72,143.39,143.37,6.97466954]
[1764846917573,0.72,143.39,143.37,4.08730262]
[1764846918785,0.72,143.39,143.37,11.0622103]
[1764846919676,6.97321692,143.41,143.37,11.0622103]
[1764846919863,0.72,143.4,143.37,11.0622103]
[1764846920181,0.72,143.4,143.37,11.7222103]
[1764846920586,0.72,143.4,143.37,11.0622103]
[1764846920888,0.72,143.4,143.38,4.08730262]
[1764846921391,0.72,143.41,143.38,4.08730262]
[1764846922988,6.9727597,143.42,143.38,11.06140529]
[1764846923282,0.72,143.42,143.39,4.74730262]
[1764846923974,0.72,143.42,143.39,4.08730262]
[1764846924177,7.69296705,143.42,143.38,11.06140529]
[1764846924384,11.78026967,143.42,143.37,6.97473402]
[1764846924567,4.80730262,143.41,143.37,6.97473402]
[1764846924866,4.80730262,143.41,143.35,11.06294257]
[1764846925061,0.72,143.4,143.35,11.06294257]
[1764846925487,0.72,143.4,143.35,11.72294257]
[1764846925900,0.72,143.4,143.36,6.97538946]
[1764846926198,0.72,143.4,143.37,11.06221809]
[1764846927597,7.69353624,143.4,143.37,6.97491547]
[1764846928087,0.72,143.39,143.37,6.97491547]
[1764846930289,0.72,143.39,143.37,11.06221809]
[1764846932994,6.97301443,143.41,143.37,11.06221809]
[1764846933175,0.72,143.4,143.37,11.06221809]
[1764846934397,0.72,143.4,143.38,4.08730262]
[1764846935371,0.72,143.4,143.38,11.06175376]
[1764846936083,0.72,143.4,143.38,6.97445114]
[1764846936282,0.72,143.4,143.37,11.0620357]
[1764846937194,0.72,143.4,143.38,11.0617372]
[1764846941604,0.72,143.4,143.37,11.06205606]
[1764846944204,0.72,143.4,143.37,11.76205606]
[1764846945413,0.72,143.4,143.37,11.06205606]
[1764846948013,6.97155605,143.44,143.39,11.06128964]
[1764846948214,0.69,143.43,143.39,11.76128964]
[1764846949396,7.66238325,143.43,143.39,11.76128964]
[1764846949792,0.69,143.42,143.39,11.76128964]
[1764846949992,7.66238325,143.43,143.4,4.78730262]
[1764846950188,6.97238325,143.43,143.4,4.08730262]
[1764846950408,0.69,143.42,143.39,11.06128964]
[1764846951014,0.69,143.42,143.39,11.76128964]
[1764846951223,0.69,143.43,143.4,0.7]
[1764846952617,0.69,143.43,143.4,11.76067903]
[1764846953316,0.69,143.43,143.4,11.06067903]
[1764846954717,7.66155605,143.44,143.41,0.7]
[1764846954895,7.66155605,143.44,143.4,11.06067903]
[1764846955094,0.69,143.43,143.4,11.76067903]
[1764846955296,0.69,143.44,143.41,4.78730262]
[1764846955599,0.69,143.43,143.4,11.06067903]
[1764846956211,0.69,143.43,143.4,6.97337641]
[1764846958907,0.69,143.43,143.41,2.61470191]
[1764846959308,0.69,143.44,143.41,2.61470191]
[1764846959905,0.69,143.43,143.41,2.61470191]
[1764846960122,0.69,143.44,143.41,2.61470191]
[1764846960705,0.69,143.44,143.41,9.587617]
[1764846961414,10.27638418,143.44,143.4,6.97327335]
[1764846961725,7.66168227,143.44,143.4,10.28797526]
[1764846961909,0.69,143.43,143.4,6.97327335]
[1764846962424,0.69,143.43,143.39,2.61470191]
[1764846962623,6.97252823,143.42,143.38,6.97411325]
[1764846962830,6.97252823,143.42,143.38,9.58881516]
[1764846963019,0.69,143.41,143.38,10.28881516]
[1764846963731,0.69,143.41,143.39,3.6]
[1764846963914,0.69,143.41,143.38,10.28881516]
[1764846966839,7.66224936,143.43,143.39,3.31470191]
[1764846967036,0.69,143.43,143.4,3.31470191]
[1764846967330,0.69,143.43,143.4,2.61470191]
[1764846967538,0.69,143.43,143.4,10.28782031]
[1764846969616,0.69,143.45,143.41,3.31470191]
[1764846969807,0.69,143.44,143.41,2.61470191]
[1764846970633,6.97088697,143.46,143.42,6.97252823]
[1764846970939,0.69,143.45,143.42,6.97252823]
[1764846971110,0.69,143.45,143.42,9.58723014]
[1764846972324,7.66088697,143.45,143.42,9.58723014]
[1764846972833,0.72,143.44,143.42,9.58723014]
[1764846973336,0.72,143.44,143.42,6.97252823]
[1764846974039,10.30558888,143.44,143.42,6.97252823]
[1764846974423,0.72,143.43,143.42,6.97252823]
[1764846975715,7.69113795,143.45,143.42,6.97252823]
[1764846975915,0.72,143.44,143.42,6.97252823]
[1764846978623,0.72,143.44,143.42,9.58723014]
[1764846979443,0.72,143.44,143.42,9.42623014]
[1764846979851,9.58558888,143.45,143.42,9.42623014]
[1764846980029,0.72000001,143.46,143.43,3.26470191]
[1764846980220,0.72000001,143.46,143.42,7.46152823]
[1764846980415,0.72000001,143.46,143.43,2.61470191]
[1764846981036,0.72000001,143.46,143.43,9.58627304]
[1764846982849,0.72000001,143.46,143.43,10.23627304]
[1764846983549,0.72000001,143.46,143.43,9.58627304]
[1764846984148,0.72000001,143.46,143.43,6.97157113]
[1764846984373,0.72000001,143.46,143.43,9.58627304]
[1764846985653,0.72000001,143.46,143.43,6.97157113]
[1764846985856,0.72000001,143.46,143.43,9.58627304]
[1764846986038,0.72000001,143.46,143.43,13.18627304]
[1764846988559,0.72000001,143.46,143.43,10.57157113]
[1764846988762,0.72,143.45,143.43,10.57157113]
[1764846990431,0.72,143.45,143.43,13.18627304]
[1764846993634,0.72,143.45,143.43,10.57157113]
[1764846993943,10.30591662,143.45,143.43,3.6]
[1764846994139,2.61470191,143.44,143.43,3.6]
[1764846994353,3.33470191,143.44,143.41,6.97273389]
[1764846994537,0.72,143.43,143.41,6.97273389]
[1764846995143,0.72,143.44,143.42,6.97252823]
[1764846998959,7.69156208,143.44,143.41,9.58749195]
[1764846999263,7.69156208,143.44,143.41,6.97279004]
[1764846999438,0.72,143.43,143.41,6.97279004]
[1764847005858,0.72,143.43,143.4,6.97349225]
[1764847006058,7.69209214,143.43,143.4,6.97349225]
[1764847006444,0.67,143.42,143.4,6.97349225]
[1764847009671,0.67,143.42,143.39,6.97391866]
[1764847009874,7.6426907,143.42,143.38,15.78400119]
[1764847010374,0.67,143.41,143.38,15.78400119]
[1764847013057,0.67,143.41,143.38,18.3987031]
[1764847013849,0.67,143.41,143.39,10.57391145]
[1764847014172,0.67,143.41,143.39,6.97391145]
[1764847016048,0.67,143.41,143.38,6.97426409]
[1764847016752,7.64313002,143.41,143.38,6.97426409]
[1764847017153,0.67,143.4,143.38,6.97426409]
[1764847020877,7.64353465,143.4,143.36,29.89524436]
[1764847021276,7.64321244,143.41,143.38,0.6]
[1764847021467,0.67,143.41,143.38,0.6]
[1764847021665,7.66,143.42,143.39,13.58638036]
[1764847022677,8.33,143.42,143.4,6.97350069]
[1764847025192,7.66,143.42,143.4,6.97350069]
[1764847025482,8.33,143.42,143.4,6.97350069]
[1764847025970,27.90620298,143.44,143.4,6.97350069]
[1764847026177,0.67,143.44,143.41,9.49994492]
[1764847026766,0.67,143.44,143.41,13.58638036]
[1764847027286,0.67,143.44,143.42,6.97252823]
[1764847028374,20.93144951,143.46,143.43,0.69]
[1764847028681,1e-08,143.46,143.43,0.69]
[1764847028877,0.67,143.45,143.42,28.49271541]
[1764847029065,0.67,143.45,143.42,11.05896367]
[1764847029483,0.67,143.45,143.42,6.97252823]
[1764847029694,4.08643544,143.44,143.38,4.08643544]
[1764847029867,4.08643544,143.42,143.37,16.308864]
[1764847030066,11.74643544,143.42,143.38,6.97443799]
[1764847030280,0.67,143.41,143.38,6.97443799]
[1764847031788,0.67,143.41,143.38,11.06087343]
[1764847031970,20.07643544,143.42,143.38,11.06087343]
[1764847032167,7.66,143.42,143.39,4.77643544]
[1764847032491,7.66,143.42,143.39,8.37643544]
[1764847032666,8.35,143.42,143.39,8.37643544]
[1764847033691,0.69,143.41,143.39,3.6]
[1764847034379,4.77643544,143.41,143.39,3.6]
[1764847034566,4.77643544,143.41,143.37,23.28368328]
[1764847034770,0.69,143.4,143.37,23.28368328]
[1764847037992,0.69,143.4,143.37,24.00368328]
[1764847038195,0.69,143.4,143.37,23.28368328]
[1764847043204,25.69228503,143.42,143.37,27.37011872]
[1764847043394,18.72228503,143.42,143.38,4.80643544]
[1764847043784,11.0595453,143.42,143.38,4.80643544]
[1764847044110,0.69,143.41,143.38,4.80643544]
[1764847044480,0.69,143.41,143.37,23.28368328]
[1764847044892,4.08643544,143.39,143.34,4.80643544]
[1764847045190,11.06095575,143.38,143.33,24.41868378]
[1764847045391,11.06095575,143.38,143.33,25.13868378]
[1764847045591,0.69,143.37,143.33,25.13868378]
[1764847045811,0.69,143.37,143.33,6.97690643]
[1764847045812,4.77643544,143.37,143.33,6.97690643]
[1764847046311,0.69,143.36,143.33,6.97690643]
[1764847047706,6.97452031,143.38,143.33,6.97690643]
[1764847047707,0.69,143.38,143.34,13.61638036]
[1764847048008,0.69,143.38,143.35,4.08643544]
[1764847048510,0.69,143.38,143.34,13.61638036]
[1764847048884,0.69,143.38,143.35,6.97593303]
[1764847049088,11.75095675,143.38,143.34,6.97633583]
[1764847049602,0.69,143.37,143.34,6.97633583]
[1764847049909,0.69,143.37,143.33,6.97670943]
[1764847049910,4.77643544,143.37,143.33,6.97670943]
[1764847050303,0.69,143.36,143.33,6.97670943]
[1764847050688,0.69,143.36,143.34,6.97616505]
[1764847051597,0.69,143.37,143.34,6.97616505]
[1764847051813,6.97452131,143.38,143.34,11.06260049]
[1764847051993,7.66416135,143.39,143.35,4.80643544]
[1764847052692,7.66416135,143.39,143.36,4.08643544]
[1764847053315,0.69,143.38,143.35,11.06207752]
[1764847053493,0.69,143.38,143.35,6.97564208]
[1764847054016,0.69,143.38,143.35,11.78207752]
[1764847054606,0.69,143.38,143.35,11.06207752]
[1764847055411,0.69,143.38,143.35,6.97564208]
[1764847056930,4.08643544,143.37,143.35,6.97564208]
[1764847057091,4.08643544,143.36,143.33,6.9766924]
[1764847057495,0.69,143.35,143.33,6.9766924]
[1764847059115,0.69,143.35,143.3,21.73221062]
[1764847059116,4.77643544,143.35,143.3,21.73221062]
[1764847059412,4.77643544,143.35,143.31,6.97747789]
[1764847059413,11.75242918,143.35,143.31,6.97747789]
[1764847059605,0.69,143.34,143.31,6.97747789]
[1764847060518,4.77643544,143.34,143.31,6.97747789]
[1764847062600,4.77643544,143.34,143.31,7.65747789]
[1764847062918,4.08643544,143.34,143.31,7.65747789]
[1764847064616,4.73643544,143.34,143.31,7.65747789]
[1764847064809,4.73643544,143.34,143.31,6.97747789]
[1764847065119,4.73643544,143.34,143.31,7.66747789]
[1764847065317,4.08643544,143.34,143.31,7.66747789]
[1764847065502,4.73643544,143.34,143.31,7.66747789]
[1764847067422,0.65,143.33,143.31,6.97747789]
[1764847070629,4.08643544,143.34,143.31,0.69]
[1764847070920,0.65,143.34,143.31,0.69]
[1764847071424,0.65,143.34,143.3,11.95478405]
[1764847071998,0.65,143.34,143.31,7.66758232]
[1764847072208,19.39258987,143.35,143.31,7.66758232]
[1764847072420,19.39258987,143.35,143.32,0.69]
[1764847072627,0.65,143.34,143.31,7.66758232]
[1764847075229,0.65,143.34,143.31,6.97758232]
[1764847075825,4.73643544,143.34,143.31,6.97758232]
[1764847076414,0.65,143.34,143.31,7.66758232]
[1764847076615,11.71258987,143.35,143.32,0.69]
[1764847077323,11.06258987,143.35,143.31,6.97758232]
[1764847077631,0.65,143.34,143.31,7.66758232]
[1764847077931,0.65,143.34,143.31,6.97758232]
[1764847078311,11.7129431,143.34,143.31,6.97758232]
[1764847078745,4.73643544,143.33,143.3,15.98808826]
[1764847079252,4.08643544,143.31,143.3,0.2]
[1764847080326,4.73643544,143.31,143.3,0.2]
[1764847080630,10.24737624,143.31,143.3,0.2]
[1764847081815,13.04135521,143.31,143.3,0.2]
[1764847082132,10.24737624,143.31,143.3,0.2]
[1764847082329,17.92737624,143.31,143.3,0.2]
[1764847083729,10.94949612,143.34,143.3,9.69994492]
[1764847084630,10.94949612,143.34,143.3,16.67827286]
[1764847084938,17.92591667,143.34,143.3,16.67827286]
[1764847085722,2.61949612,143.33,143.3,16.67827286]
[1764847086040,3.26949612,143.33,143.3,15.98827286]
[1764847086223,3.26949612,143.33,143.3,16.51327286]
[1764847086530,3.26949612,143.33,143.3,15.82327286]
[1764847086731,2.61949612,143.33,143.31,7.66777754]
[1764847086922,9.59591667,143.34,143.31,7.66777754]
[1764847087236,10.24591667,143.34,143.31,7.66777754]
[1764847088518,10.24591667,143.34,143.31,6.97777754]
[1764847089024,7.62642055,143.34,143.31,6.97777754]
[1764847089532,6.97614565,143.35,143.32,0.69]
[1764847089737,10.24564177,143.35,143.32,0.69]
[1764847091743,10.24564177,143.35,143.31,7.66777754]
[1764847092040,0.65,143.35,143.31,9.59727366]
[1764847092244,6.97561666,143.36,143.31,9.59727366]
[1764847092245,10.29949612,143.38,143.33,11.42944104]
[1764847092444,0.65,143.37,143.33,11.42944104]
[1764847092744,0.65,143.37,143.33,12.14944104]
[1764847093035,10.25367971,143.39,143.34,3.33949612]
[1764847093414,0.66,143.38,143.35,0.72]
[1764847093739,0.66,143.38,143.34,3.33949612]
[1764847094041,0.66,143.38,143.35,6.97593303]
[1764847095938,6.97418359,143.39,143.36,7.69534862]
[1764847096142,10.25367971,143.39,143.36,6.97534862]
[1764847096444,10.25367971,143.39,143.35,10.31521245]
[1764847096975,0.66,143.38,143.35,10.31521245]
[1764847098448,3.27949612,143.39,143.35,10.31521245]
[1764847098942,3.27949612,143.41,143.36,12.14944104]
[1764847099245,0.66,143.41,143.37,2.61949612]
[1764847099424,0.66,143.41,143.37,3.33949612]
[1764847099623,0.66,143.41,143.37,2.61949612]
[1764847099832,0.66,143.41,143.37,3.33949612]
[1764847100038,0.66,143.41,143.38,6.97447342]
[1764847102232,3.27949612,143.41,143.38,6.97447342]
[1764847102432,0.66,143.4,143.38,6.97447342]
[1764847103136,2.61949612,143.41,143.38,6.97447342]
[1764847103526,0.66,143.4,143.38,6.97447342]
[1764847103747,0.66,143.41,143.38,6.97447342]
[1764847103944,0.66,143.41,143.38,7.69447342]
[1764847105147,16.968864,143.42,143.39,2.61949612]
[1764847105349,0.66,143.42,143.39,3.33949612]
[1764847105654,0.66,143.43,143.39,3.33949612]
[1764847106267,0.66,143.43,143.4,0.72]
[1764847106430,0.66,143.43,143.4,3.33949612]
[1764847107142,0.66,143.43,143.4,10.31258456]
[1764847107339,0.66,143.45,143.41,3.33949612]
[1764847107646,10.27949613,143.46,143.42,11.42944104]
[1764847107647,8.32000001,143.46,143.42,11.42944104]
[1764847107854,0.66,143.45,143.42,11.42944104]
[1764847108651,0.66,143.45,143.43,6.97204211]
[1764847109459,2.61949612,143.44,143.41,2.9]
[1764847109757,2.61949612,143.44,143.4,8.80994492]
[1764847109960,0.66,143.43,143.41,6.9727326]
[1764847110542,9.59064095,143.45,143.41,6.9727326]
[1764847110843,0.66,143.44,143.41,6.9727326]
[1764847112561,0.66,143.44,143.42,2.9]
[1764847112852,0.66,143.44,143.41,9.59222872]
[1764847113349,0.66,143.44,143.41,6.9727326]
[1764847113956,0.66,143.44,143.37,34.87256668]
[1764847113957,2.61949612,143.43,143.38,3.33949612]
[1764847114260,2.61949612,143.43,143.39,6.97369776]
[1764847114560,0.66,143.42,143.4,6.97349149]
[1764847116252,0.66,143.42,143.39,7.69375088]
[1764847117549,0.66,143.42,143.4,1.5]
[1764847117862,2.61949612,143.41,143.4,1.5]
[1764847118158,2.61949612,143.41,143.37,6.9747367]
[1764847118346,7.6325912,143.42,143.37,6.9747367]
[1764847118347,3.27949612,143.4,143.37,6.9747367]
[1764847118736,0.66,143.39,143.37,6.9747367]
[1764847118933,0.66,143.4,143.37,19.12417774]
[1764847119353,0.66,143.4,143.37,33.94208135]
[1764847120639,0.66,143.4,143.37,36.56157747]
[1764847120949,0.68,143.42,143.38,3.33949612]
[1764847122056,0.68,143.42,143.39,6.97398702]
[1764847123258,3.29949612,143.42,143.39,6.97398702]
[1764847125158,3.31949612,143.42,143.39,6.97398702]
[1764847125557,2.61949612,143.42,143.39,6.97398702]
[1764847125755,17.42719926,143.46,143.4,0.68]
[1764847125756,3.31949612,143.44,143.4,0.68]
[1764847125947,2.61949612,143.44,143.4,0.68]
[1764847126138,0.7,143.43,143.4,0.68]
[1764847126340,0.7,143.43,143.4,8.80994492]
[1764847127352,0.7,143.43,143.41,6.97301443]
[1764847127956,2.61949612,143.44,143.41,6.97301443]
[1764847128472,0.7,143.43,143.41,6.97301443]
[1764847131569,2.61949612,143.45,143.41,7.65301443]
[1764847131769,0.7,143.45,143.42,0.68]
[1764847131977,0.7,143.45,143.42,1.5]
[1764847133265,0.7,143.45,143.42,8.47215837]
[1764847134756,3.31949612,143.45,143.42,8.47215837]
[1764847136283,0.7,143.44,143.42,8.47215837]
[1764847137082,0.7,143.44,143.42,6.97215837]
[1764847138580,0.7,143.44,143.41,24.40555051]
[1764847139474,0.7,143.44,143.42,1.5]
[1764847139674,0.7,143.44,143.41,24.40555051]
[1764847142377,11.05538806,143.46,143.41,28.4901193]
[1764847142577,1e-08,143.46,143.42,13.57451371]
[1764847142782,0.70000001,143.46,143.42,13.57451371]
[1764847144091,0.70000001,143.46,143.43,6.97204211]
[1764847144472,0.70000001,143.46,143.43,8.47204211]
[1764847145794,4.7845688,143.46,143.43,6.97204211]
[1764847145983,11.75521825,143.46,143.43,6.97204211]
[1764847146184,0.7,143.45,143.43,6.97204211]
[1764847146586,4.78456879,143.45,143.42,6.97232377]
[1764847146987,0.7,143.44,143.42,6.97232377]
[1764847148491,7.67064946,143.46,143.42,11.73689256]
[1764847148673,0.7,143.45,143.42,11.73689256]
[1764847149068,0.7,143.45,143.42,11.05689256]
[1764847149395,0.7,143.45,143.42,6.97232377]
[1764847149695,0.7,143.45,143.43,8.47197865]
[1764847150493,7.67111715,143.45,143.43,1.5]
[1764847150867,0.7,143.44,143.43,1.5]
[1764847152873,0.71,143.45,143.43,8.47183359]
[1764847153994,4.08456879,143.44,143.43,1.5]
[1764847154497,4.08456879,143.44,143.41,6.97275979]
[1764847154498,4.79456879,143.44,143.41,6.97275979]
[1764847154700,0.71,143.43,143.41,6.97275979]
[1764847157475,4.08456879,143.42,143.38,16.308864]